bitfinex/quotes_SOLUSD_20251207
["timestamp","ask_amount","ask_price","bid_price","bid_amount"]
[1765126140250,17.14477861,130.81,130.78,0.69]
[1765126140660,16.45477861,130.81,130.78,0.69]
[1765126140967,16.45477861,130.81,130.78,4.55825991]
[1765126141161,16.45477861,130.81,130.78,0.69]
[1765126141365,16.45477861,130.81,130.79,0.69]
[1765126141682,8.33527525,130.8,130.77,7.64690313]
[1765126141963,8.33527525,130.8,130.77,8.33690313]
[1765126142149,8.33527525,130.8,130.78,0.69]
[1765126142666,17.14486594,130.81,130.78,0.69]
[1765126142964,16.45486594,130.81,130.78,0.69]
[1765126143180,12.67820483,130.79,130.76,0.69]
[1765126143683,8.80994492,130.79,130.76,0.69]
[1765126144043,20.70825991,130.82,130.77,3.86825991]
[1765126144270,16.308864,130.83,130.79,3.86825991]
[1765126144271,23.95253505,130.83,130.79,3.86825991]
[1765126144446,7.64367105,130.83,130.8,0.69]
[1765126144652,16.06299965,130.84,130.8,4.55825991]
[1765126144843,7.64299965,130.84,130.8,4.55825991]
[1765126145045,0.69,130.83,130.79,3.86825991]
[1765126145352,0.69,130.83,130.8,0.69]
[1765126145867,8.33362642,130.83,130.8,0.69]
[1765126146959,11.51188633,130.83,130.78,7.64621361]
[1765126147168,0.69,130.82,130.79,0.69]
[1765126147470,12.20188633,130.83,130.79,0.69]
[1765126147964,8.33362642,130.83,130.79,0.69]
[1765126148270,8.33362642,130.83,130.79,8.33561427]
[1765126148477,8.33362642,130.83,130.8,0.69]
[1765126151466,16.45293872,130.84,130.8,8.33521024]
[1765126151656,16.45293872,130.84,130.8,12.20347015]
[1765126151857,16.45293872,130.84,130.81,0.69]
[1765126152969,0.69,130.83,130.8,0.69]
[1765126153147,0.69,130.83,130.78,16.06621751]
[1765126153474,0.69,130.83,130.79,0.69]
[1765126153848,0.69,130.83,130.79,8.33570753]
[1765126154273,8.80994492,130.83,130.8,0.69]
[1765126154868,7.6429938,130.84,130.8,0.69]
[1765126155055,7.6429938,130.84,130.8,8.33525663]
[1765126155459,8.3329938,130.84,130.81,0.69]
[1765126161352,7.6429938,130.84,130.81,0.69]
[1765126162466,8.3029938,130.84,130.81,0.69]
[1765126163263,7.6429938,130.84,130.81,0.69]
[1765126163470,8.80994492,130.84,130.81,8.33450817]
[1765126163869,9.46994492,130.84,130.81,8.33450817]
[1765126164064,9.46994492,130.84,130.81,0.66]
[1765126164582,17.11292154,130.84,130.81,0.66]
[1765126165684,0.66,130.83,130.81,0.66]
[1765126165880,17.11292154,130.84,130.81,0.66]
[1765126167185,16.45292154,130.84,130.81,0.66]
[1765126167363,0.66,130.83,130.81,0.66]
[1765126167686,16.45292154,130.84,130.81,0.66]
[1765126167880,17.11292154,130.84,130.81,0.66]
[1765126169685,0.66,130.83,130.81,0.66]
[1765126170392,16.45292154,130.84,130.81,0.66]
[1765126170566,17.11292154,130.84,130.81,0.66]
[1765126170766,8.30378483,130.83,130.81,0.66]
[1765126171288,8.30378483,130.83,130.79,7.64563624]
[1765126171468,8.30378483,130.83,130.8,0.66]
[1765126171667,23.95069084,130.86,130.81,19.93280374]
[1765126171873,23.95069084,130.86,130.82,3.86825991]
[1765126172087,23.95069084,130.86,130.82,4.52825991]
[1765126172287,23.95069084,130.86,130.83,0.66]
[1765126172669,24.61069084,130.86,130.83,0.66]
[1765126173271,0.66,130.85,130.82,0.66]
[1765126174171,0.66,130.85,130.81,0.66]
[1765126174599,12.67820483,130.84,130.79,8.30563069]
[1765126174891,21.09820483,130.84,130.79,8.30563069]
[1765126175088,8.30350684,130.83,130.8,0.66]
[1765126176304,16.45303921,130.84,130.8,0.66]
[1765126176492,23.95066264,130.86,130.82,3.86825991]
[1765126177105,7.64179864,130.86,130.83,0.66]
[1765126177276,19.10067364,130.89,130.85,3.86825991]
[1765126177477,8.80994492,130.88,130.85,3.86825991]
[1765126177692,8.80994492,130.88,130.86,0.66]
[1765126178398,16.45065084,130.88,130.86,0.66]
[1765126178595,32.3687631,130.9,130.86,0.66]
[1765126178776,8.80994492,130.89,130.86,4.52825991]
[1765126179172,8.80994492,130.89,130.87,0.66]
[1765126180081,19.09781941,130.91,130.87,12.16941786]
[1765126180082,7.63906202,130.91,130.87,12.16941786]
[1765126180298,8.29906202,130.91,130.87,12.16941786]
[1765126180474,8.29906202,130.91,130.88,0.66]
[1765126180674,8.80994492,130.91,130.88,0.66]
[1765126181640,16.44879688,130.91,130.88,0.66]
[1765126181775,0.66,130.9,130.86,8.30151893]
[1765126182779,0.66,130.9,130.84,7.64254212]
[1765126182780,8.80994492,130.89,130.84,7.64254212]
[1765126182994,8.80994492,130.89,130.85,0.66]
[1765126183195,8.80994492,130.89,130.85,4.52825991]
[1765126183503,9.08,130.9,130.86,11.50950677]
[1765126183705,16.7196944,130.9,130.86,12.16950677]
[1765126184008,16.7196944,130.9,130.87,0.66]
[1765126184298,8.42,130.9,130.87,0.66]
[1765126184603,16.44886394,130.91,130.87,4.52825991]
[1765126184802,16.44886394,130.91,130.87,3.1333033]
[1765126185100,8.80994492,130.91,130.88,0.66]
[1765126185481,16.308864,130.88,130.83,0.66]
[1765126185794,23.94955148,130.88,130.84,8.30245303]
[1765126185980,24.60955148,130.88,130.85,0.66]
[1765126188592,0.66,130.87,130.83,8.30344385]
[1765126188905,8.30127824,130.87,130.83,8.30344385]
[1765126189207,8.30127824,130.87,130.84,0.66]
[1765126192887,8.34127824,130.87,130.84,0.66]
[1765126193090,7.64127824,130.87,130.84,0.66]
[1765126193291,8.34127824,130.87,130.84,0.66]
[1765126193916,32.36960057,130.88,130.84,8.30276787]
[1765126194095,32.36960057,130.88,130.84,10.77607117]
[1765126194294,32.36960057,130.88,130.85,0.7]
[1765126196922,16.45018262,130.89,130.85,10.81558425]
[1765126197096,7.63951022,130.9,130.86,2.4733033]
[1765126197299,7.63951022,130.9,130.86,3.1533033]
[1765126197603,7.63951022,130.9,130.87,0.68]
[1765126197798,8.31951022,130.9,130.87,0.68]
[1765126198401,8.31951022,130.9,130.86,2.4733033]
[1765126198402,8.80994492,130.87,130.82,3.1533033]
[1765126198614,8.80994492,130.87,130.82,8.32371064]
[1765126198615,7.64175454,130.86,130.82,8.32371064]
[1765126198921,8.32175454,130.86,130.83,0.68]
[1765126199997,7.642348,130.85,130.83,0.68]
[1765126200203,8.32198342,130.86,130.83,0.68]
[1765126200818,10.79528672,130.86,130.81,8.32450265]
[1765126201016,11.96324822,130.85,130.81,0.68]
[1765126201195,9.48994492,130.85,130.81,0.68]
[1765126201396,0.68,130.84,130.81,0.68]
[1765126201795,9.48994492,130.85,130.81,8.32458687]
[1765126202408,0.68,130.84,130.81,8.32458687]
[1765126203234,0.68,130.84,130.8,7.64525993]
[1765126203398,0.68,130.84,130.81,0.68]
[1765126203798,17.13263289,130.85,130.81,0.68]
[1765126205019,17.13263289,130.85,130.81,8.3245547]
[1765126205222,17.13263289,130.85,130.82,0.68]
[1765126205523,16.45263289,130.85,130.82,0.68]
[1765126205910,17.13263289,130.85,130.82,0.68]
[1765126206522,8.80994492,130.85,130.82,8.32396926]
[1765126206731,7.64196601,130.86,130.83,0.68]
[1765126206947,8.32196601,130.86,130.83,0.68]
[1765126208020,17.22994492,130.87,130.83,8.32339297]
[1765126208021,24.87133885,130.87,130.83,8.32339297]
[1765126208322,25.55133885,130.87,130.83,8.32339297]
[1765126208503,25.55133885,130.87,130.84,0.68]
[1765126209321,109.79119624,130.93,130.85,2.4733033]
[1765126209322,25.11880892,130.89,130.85,2.4733033]
[1765126209700,16.05948852,130.9,130.87,2.4733033]
[1765126210010,16.05948852,130.9,130.86,10.79484306]
[1765126210310,16.73948852,130.9,130.86,10.79484306]
[1765126210504,16.73948852,130.9,130.87,0.68]
[1765126210900,8.42,130.9,130.87,10.79435348]
[1765126211123,16.44881069,130.91,130.88,0.68]
[1765126211329,17.12881069,130.91,130.88,0.68]
[1765126211707,16.44881069,130.91,130.88,0.68]
[1765126211905,16.308864,130.92,130.88,10.79351569]
[1765126212205,0.68,130.91,130.88,0.68]
[1765126215434,8.31887435,130.91,130.88,0.68]
[1765126216024,8.31887435,130.91,130.87,16.74094755]
[1765126216611,8.31887435,130.91,130.87,16.06094755]
[1765126217049,8.31887435,130.91,130.88,0.68]
[1765126220538,7.63887435,130.91,130.88,8.32056111]
[1765126220741,8.32887435,130.91,130.88,8.32056111]
[1765126221315,8.32887435,130.91,130.88,0.68]
[1765126222327,0.69,130.9,130.87,8.42]
[1765126222746,0.69,130.9,130.88,0.7]
[1765126223239,8.32887435,130.91,130.88,0.7]
[1765126228019,8.80994492,130.93,130.88,8.34025028]
[1765126228219,9.49994492,130.93,130.88,8.34025028]
[1765126228419,9.49994492,130.93,130.89,0.7]
[1765126229742,17.13779923,130.93,130.89,8.33997025]
[1765126231046,17.13779923,130.93,130.9,0.7]
[1765126232443,17.13779923,130.93,130.9,8.3393916]
[1765126232644,9.49994492,130.93,130.9,8.3393916]
[1765126233166,16.308864,130.9,130.86,0.7]
[1765126233325,16.308864,130.9,130.86,8.34138959]
[1765126233525,16.998864,130.9,130.86,8.34138959]
[1765126233724,16.998864,130.9,130.87,0.7]
[1765126234551,16.308864,130.9,130.87,0.7]
[1765126235532,8.32915584,130.91,130.87,8.3410611]
[1765126235855,0.69,130.9,130.87,8.3410611]
[1765126237258,8.3294871,130.9,130.86,8.34155196]
[1765126237628,8.3294871,130.9,130.86,7.64155196]
[1765126237829,8.3294871,130.9,130.87,0.7]
[1765126238056,0.69,130.89,130.86,0.7]
[1765126242469,7.6394871,130.9,130.86,8.341513]
[1765126242843,7.6394871,130.9,130.87,0.7]
[1765126243160,8.32925117,130.91,130.87,0.7]
[1765126243664,8.32925117,130.91,130.87,8.34116972]
[1765126244160,32.36727782,130.92,130.87,8.34116972]
[1765126244492,0.69,130.91,130.88,0.7]
[1765126245138,8.32889342,130.91,130.88,0.7]
[1765126247769,8.32889342,130.91,130.88,8.34053514]
[1765126247947,8.32889342,130.91,130.88,0.7]
[1765126248348,8.30889342,130.91,130.88,0.7]
[1765126258475,16.05840259,130.92,130.88,8.34026899]
[1765126258657,0.7,130.91,130.88,8.34026899]
[1765126258856,0.7,130.91,130.88,8.30026899]
[1765126259671,0.7,130.91,130.88,0.66]
[1765126260357,7.6394194,130.9,130.88,0.66]
[1765126262684,0.7,130.9,130.88,0.66]
[1765126262861,16.44878076,130.91,130.88,0.66]
[1765126263062,17.14878076,130.91,130.88,0.66]
[1765126267291,0.2,130.95,130.89,8.42]
[1765126267502,0.2,130.95,130.89,17.31350553]
[1765126267661,0.9,130.95,130.9,0.68]
[1765126267865,8.53666069,130.95,130.9,0.68]
[1765126268066,9.12,130.94,130.9,0.68]
[1765126268475,0.7,130.93,130.9,0.68]
[1765126269300,0.7,130.93,130.9,8.31922514]
[1765126274171,8.42,130.94,130.91,0.68]
[1765126274382,0.9,130.95,130.91,0.68]
[1765126275314,0.7,130.94,130.89,9.1]
[1765126275593,0.7,130.94,130.9,0.68]
[1765126276297,0.7,130.94,130.9,8.31932547]
[1765126276670,0.7,130.94,130.91,0.68]
[1765126277386,0.7,130.94,130.91,8.31874768]
[1765126277892,0.7,130.94,130.92,0.68]
[1765126278289,0.9,130.95,130.92,0.68]
[1765126279079,0.7,130.94,130.92,0.68]
[1765126279296,0.2,130.95,130.92,8.31783034]
[1765126279900,0.9,130.95,130.93,0.68]
[1765126285088,0.2,130.95,130.93,8.31752829]
[1765126285496,0.2,130.95,130.94,0.7]
[1765126295801,0.2,130.95,130.94,8.33708568]
[1765126296329,0.2,130.95,130.94,16.75708568]
[1765126298618,0.2,130.95,130.94,95.26594968]
[1765126301723,0.2,130.95,130.94,33.06594968]
[1765126303116,0.2,130.95,130.94,24.64594968]
[1765126303328,0.2,130.95,130.94,33.04594968]
[1765126305811,0.2,130.97,130.94,114.3386639]
[1765126306017,0.2,130.97,130.95,10.06049442]
[1765126306415,0.2,130.97,130.96,0.7]
[1765126307229,0.2,130.97,130.96,3.75751958]
[1765126307429,0.2,130.97,130.96,11.39343894]
[1765126307640,0.2,130.98,130.96,47.40446797]
[1765126307807,0.2,130.99,130.98,16.308864]
[1765126308133,0.2,130.99,130.98,36.01091243]
[1765126308299,0.2,130.99,130.98,39.77773104]
[1765126308826,0.2,131.0,130.99,18.9385731]
[1765126309032,0.2,131.0,130.99,28.0485731]
[1765126309828,0.2,131.0,130.99,35.68274364]
[1765126310526,0.2,131.01,130.99,35.68274364]
[1765126310731,0.2,131.01,131.0,0.7]
[1765126310932,0.2,131.01,131.0,10.06049442]
[1765126311243,0.2,131.01,131.0,19.6385731]
[1765126311542,0.2,131.01,131.0,36.71079587]
[1765126311543,1e-08,131.01,131.0,36.71079587]
[1765126311832,0.2,131.02,131.01,9.36049441]
[1765126312006,0.2,131.02,131.01,26.09349952]
[1765126313037,0.2,131.02,131.01,29.14961748]
[1765126314234,0.2,131.02,131.01,20.74961748]
[1765126314429,0.2,131.02,131.01,29.14961748]
[1765126316136,0.9,131.02,131.01,7.63300511]
[1765126319027,0.9,131.02,131.0,7.63352142]
[1765126320010,0.7,131.01,131.0,7.63352142]
[1765126320532,0.2,131.02,131.0,7.63352142]
[1765126320735,0.9,131.02,131.0,7.63352142]
[1765126321030,0.2,131.02,131.0,7.63352142]
[1765126321227,0.9,131.02,131.0,7.63352142]
[1765126323235,0.68,131.01,131.0,7.63352142]
[1765126323435,0.68,131.01,130.95,0.7]
[1765126324139,8.80994492,131.0,130.95,7.63610565]
[1765126324321,8.80994492,131.0,130.94,7.63687549]
[1765126324527,0.68,130.99,130.94,7.63687549]
[1765126324710,8.80994492,130.98,130.93,7.63757929]
[1765126325130,0.68,130.97,130.93,7.63757929]
[1765126325333,0.68,130.97,130.92,7.63825236]
[1765126325841,8.3153465,130.97,130.92,7.63825236]
[1765126326537,0.68,130.96,130.92,7.63825236]
[1765126328135,8.31607319,130.96,130.92,7.63825236]
[1765126328333,0.68,130.96,130.92,7.63825236]
[1765126328532,0.68,130.95,130.92,7.63825236]
[1765126328716,0.68,130.95,130.92,8.33825236]
[1765126328917,0.68,130.95,130.92,7.63825236]
[1765126330731,23.9435412,130.99,130.92,26.73388327]
[1765126330939,23.9435412,130.99,130.92,89.63388327]
[1765126331137,0.68,130.98,130.93,0.7]
[1765126331722,0.68,130.98,130.94,7.63708568]
[1765126331922,8.31475376,130.98,130.94,7.63708568]
[1765126332123,0.68,130.97,130.94,7.63708568]
[1765126333549,8.31537899,130.97,130.93,7.63746134]
[1765126333747,8.31537899,130.97,130.93,8.33746134]
[1765126334042,0.68,130.96,130.93,8.33746134]
[1765126334243,0.68,130.96,130.91,17.008864]
[1765126334454,0.68,130.96,130.91,16.7383878]
[1765126337322,8.31634989,130.96,130.91,16.0383878]
[1765126337524,8.31634989,130.96,130.92,0.7]
[1765126337743,0.68,130.95,130.92,0.7]
[1765126344451,8.3166234,130.95,130.92,0.7]
[1765126345147,7.6366234,130.95,130.92,0.7]
[1765126345344,0.7,130.94,130.91,16.0383878]
[1765126345643,0.7,130.94,130.91,7.6383878]
[1765126345946,0.7,130.94,130.91,8.2983878]
[1765126346547,0.7,130.94,130.92,7.63822132]
[1765126346748,0.7,130.94,130.92,8.29822132]
[1765126347654,0.7,130.94,130.92,7.63822132]
[1765126348227,0.7,130.94,130.91,8.298608]
[1765126348428,8.33714912,130.94,130.88,7.64014845]
[1765126348735,7.63825236,130.92,130.87,7.6407958]
[1765126349045,7.63825236,130.92,130.88,0.66]
[1765126349225,0.7,130.91,130.88,0.66]
[1765126349949,0.7,130.91,130.88,8.30052047]
[1765126352957,8.33895651,130.91,130.86,9.06]
[1765126353129,8.33895651,130.91,130.87,0.66]
[1765126353330,8.33846602,130.92,130.87,0.66]
[1765126353540,0.7,130.92,130.87,0.66]
[1765126355052,0.7,130.92,130.88,7.64058679]
[1765126355558,0.7,130.92,130.88,8.30058679]
[1765126356955,0.7,130.92,130.89,0.66]
[1765126357153,0.7,130.92,130.89,8.29996577]
[1765126358559,7.63781124,130.93,130.9,0.66]
[1765126358941,8.3373201,130.94,130.9,0.66]
[1765126359135,8.3373201,130.94,130.9,8.29921036]
[1765126359577,8.3373201,130.94,130.91,0.66]
[1765126359936,0.7,130.93,130.9,0.66]
[1765126360144,0.7,130.93,130.89,16.05989533]
[1765126361165,7.63825236,130.92,130.89,8.42]
[1765126361657,0.7,130.91,130.89,8.42]
[1765126363263,0.7,130.91,130.88,8.30040122]
[1765126364467,7.63825236,130.92,130.88,7.64040122]
[1765126364671,8.33825236,130.92,130.89,0.66]
[1765126365483,0.7,130.91,130.89,0.66]
[1765126365975,8.33825236,130.92,130.89,0.66]
[1765126377697,8.33825236,130.92,130.89,8.2999935]
[1765126378704,8.33825236,130.92,130.89,8.3199935]
[1765126378874,0.67,130.93,130.9,0.68]
[1765126380782,8.30773453,130.93,130.89,7.6399935]
[1765126380973,8.30773453,130.93,130.89,8.3199935]
[1765126381173,0.69,130.92,130.89,7.6399935]
[1765126381489,0.69,130.92,130.89,8.3199935]
[1765126382568,0.69,130.92,130.9,0.68]
[1765126383186,8.32836563,130.92,130.88,78.94049007]
[1765126383499,8.32836563,130.92,130.89,0.68]
[1765126383792,0.69,130.91,130.88,62.88]
[1765126383981,0.69,130.91,130.88,0.68]
[1765126384587,3.86417091,130.93,130.88,12.18452786]
[1765126384588,7.63771726,130.93,130.88,12.18452786]
[1765126384778,8.32771726,130.93,130.88,12.18452786]
[1765126384978,8.32771726,130.93,130.89,0.68]
[1765126385177,0.69,130.92,130.89,0.68]
[1765126385664,0.69,130.92,130.89,8.31976567]
[1765126388495,0.69,130.92,130.9,0.68]
[1765126389998,0.69,130.92,130.89,7.63976567]
[1765126390203,0.69,130.92,130.89,8.31976567]
[1765126392669,0.69,130.92,130.89,7.63976567]
[1765126392872,0.69,130.92,130.9,0.68]
[1765126397806,0.69,130.92,130.89,8.31976567]
[1765126398203,0.69,130.92,130.89,7.63976567]
[1765126398505,0.69,130.92,130.9,0.68]
[1765126404307,12.19249489,130.92,130.86,3.86417091]
[1765126404514,12.19249489,130.92,130.86,12.18555306]
[1765126404685,0.69,130.91,130.87,0.68]
[1765126405399,0.69,130.91,130.87,8.32114986]
[1765126405819,8.32920352,130.91,130.87,8.32114986]
[1765126405984,7.63920352,130.91,130.87,8.32114986]
[1765126406183,0.69,130.9,130.87,8.32114986]
[1765126406683,0.69,130.9,130.86,7.64164772]
[1765126406887,4.55417091,130.9,130.84,4.54417091]
[1765126407404,4.55417091,130.89,130.85,0.68]
[1765126407579,4.55417091,130.89,130.84,0.68]
[1765126407784,0.69,130.88,130.84,0.68]
[1765126407981,7.64117062,130.87,130.84,0.68]
[1765126408216,11.50534153,130.87,130.83,0.68]
[1765126408416,0.69,130.86,130.83,0.68]
[1765126410011,12.1960229,130.86,130.82,0.68]
[1765126410515,0.69,130.85,130.82,0.68]
[1765126412320,8.33271953,130.85,130.81,4.54417091]
[1765126412608,8.33271953,130.85,130.81,0.68]
[1765126412818,0.69,130.84,130.81,0.68]
[1765126415119,8.33304585,130.84,130.8,7.64509096]
[1765126415443,8.33304585,130.84,130.8,8.32509096]
[1765126415613,0.69,130.83,130.8,12.18926187]
[1765126415811,8.42,130.86,130.81,12.18877248]
[1765126416042,8.42,130.86,130.82,3.86417091]
[1765126416246,0.69,130.85,130.82,4.54417091]
[1765126416839,0.69,130.85,130.82,12.18809671]
[1765126417437,8.42,130.86,130.82,11.50809671]
[1765126417618,8.33000305,130.89,130.85,3.86417091]
[1765126418027,0.69,130.88,130.85,4.54417091]
[1765126418219,8.33000305,130.89,130.86,0.68]
[1765126419034,16.05963889,130.9,130.86,12.1858588]
[1765126419337,16.74963889,130.9,130.86,12.1858588]
[1765126419521,16.74963889,130.9,130.87,0.68]
[1765126420839,0.69,130.89,130.86,7.64168789]
[1765126421058,0.69,130.89,130.86,4.54417091]
[1765126421514,0.69,130.89,130.86,0.68]
[1765126421916,0.69,130.89,130.84,19.1065308]
[1765126421917,0.69,130.89,130.84,12.18693315]
[1765126422216,0.69,130.89,130.84,4.54417091]
[1765126422431,8.80994492,130.88,130.83,3.86417091]
[1765126422742,12.67411583,130.88,130.83,0.68]
[1765126422927,8.33117062,130.87,130.83,0.68]
[1765126423822,8.33117062,130.87,130.83,4.54417091]
[1765126424322,0.69,130.86,130.83,4.54417091]
[1765126425252,8.33177741,130.86,130.81,66.06417091]
[1765126425422,8.33177741,130.86,130.82,0.68]
[1765126425627,0.69,130.85,130.82,0.68]
[1765126425827,0.69,130.85,130.82,4.54417091]
[1765126426135,8.33177741,130.86,130.83,0.68]
[1765126427347,7.64177741,130.86,130.83,0.68]
[1765126427548,0.69,130.85,130.82,11.50792185]
[1765126427720,0.69,130.85,130.83,0.68]
[1765126428446,8.33177741,130.86,130.83,0.68]
[1765126433069,0.7,130.85,130.82,0.67]
[1765126433265,16.06131366,130.87,130.83,3.14529871]
[1765126433437,16.76131366,130.87,130.83,3.14529871]
[1765126433632,0.7,130.86,130.83,3.14529871]
[1765126434034,0.7,130.86,130.83,0.67]
[1765126434962,0.7,130.86,130.83,8.31337503]
[1765126437656,0.7,130.86,130.83,7.64337503]
[1765126437852,0.7,130.86,130.83,8.31337503]
[1765126438456,0.7,130.86,130.84,0.67]
[1765126438755,0.7,130.86,130.83,7.64337503]
[1765126438958,0.7,130.86,130.83,8.31337503]
[1765126442756,0.7,130.86,130.83,7.64337503]
[1765126443056,0.7,130.86,130.83,8.30337503]
[1765126443232,16.06131366,130.87,130.84,0.66]
[1765126443432,16.73131366,130.87,130.84,0.66]
[1765126444063,0.67,130.86,130.84,0.66]
[1765126444846,0.67,130.86,130.83,8.30337503]
[1765126445049,8.31177809,130.86,130.83,7.64337503]
[1765126445448,0.67,130.86,130.83,7.64337503]
[1765126445648,0.67,130.86,130.83,8.30337503]
[1765126446847,0.67,130.86,130.84,0.66]
[1765126447194,8.42,130.87,130.84,10.77817387]
[1765126447641,8.42,130.87,130.85,0.66]
[1765126448956,8.3106864,130.88,130.85,0.66]
[1765126450555,8.3106864,130.88,130.85,8.3022643]
[1765126451760,16.06018367,130.89,130.86,0.66]
[1765126452060,16.73018367,130.89,130.86,0.66]
[1765126452360,0.67,130.88,130.86,0.66]
[1765126452569,0.67,130.88,130.85,8.3022643]
[1765126457972,2.47529871,130.92,130.86,3.13529871]
[1765126458181,8.30825236,130.92,130.88,2.47529871]
[1765126458380,7.63825236,130.92,130.88,2.47529871]
[1765126458570,8.30825236,130.92,130.89,0.66]
[1765126458763,8.30825236,130.92,130.89,3.13529871]
[1765126459246,16.05769786,130.93,130.89,2.47529871]
[1765126459447,16.05769786,130.93,130.9,0.66]
[1765126459448,16.72769786,130.93,130.9,0.66]
[1765126462981,9.1,130.95,130.91,2.47529871]
[1765126463185,0.68,130.94,130.91,2.47529871]
[1765126463478,0.68,130.94,130.91,3.15529871]
[1765126464183,0.68,130.94,130.91,0.68]
[1765126465183,8.31711857,130.94,130.91,0.68]
[1765126466493,0.68,130.93,130.91,0.68]
[1765126467490,7.63711857,130.94,130.91,0.68]
[1765126467667,8.31711857,130.94,130.91,8.31880784]
[1765126473194,8.31711857,130.94,130.92,0.68]
[1765126473378,0.68,130.93,130.91,0.68]
[1765126473688,0.68,130.93,130.89,10.79506374]
[1765126473891,0.68,130.93,130.89,0.68]
[1765126474578,3.15529871,130.93,130.88,16.04039347]
[1765126474787,3.15529871,130.93,130.89,0.68]
[1765126475097,0.68,130.92,130.88,8.32039347]
[1765126475300,8.31826163,130.92,130.88,8.32039347]
[1765126475777,0.68,130.91,130.88,8.32039347]
[1765126476900,0.68,130.91,130.88,7.64039347]
[1765126477221,0.68,130.91,130.88,10.79569218]
[1765126480069,0.68,130.91,130.89,0.68]
[1765126480306,0.68,130.91,130.89,8.31992859]
[1765126480600,8.31826163,130.92,130.89,8.31992859]
[1765126480802,0.68,130.91,130.89,8.31992859]
[1765126483697,0.68,130.91,130.88,10.11567828]
[1765126483897,0.68,130.91,130.88,10.79567828]
[1765126485015,0.68,130.91,130.89,0.68]
[1765126485524,8.31826163,130.92,130.89,0.68]
[1765126486227,0.68,130.91,130.89,0.68]
[1765126487329,0.68,130.92,130.89,0.68]
[1765126489625,7.63766898,130.93,130.89,10.7952006]
[1765126490128,7.63766898,130.93,130.9,0.68]
[1765126490324,8.31766898,130.93,130.9,0.68]
[1765126492622,26.7297999,130.94,130.9,0.68]
[1765126492832,27.4397999,130.94,130.9,4.54305626]
[1765126494135,8.34796868,130.93,130.9,0.68]
[1765126494331,8.34796868,130.93,130.91,0.7]
[1765126495437,26.7297999,130.94,130.91,0.7]
[1765126495744,27.4397999,130.94,130.91,0.7]
[1765126496614,26.7297999,130.94,130.91,0.7]
[1765126496937,8.34790582,130.93,130.91,0.7]
[1765126498609,8.42,130.95,130.91,0.7]
[1765126498610,9.13,130.95,130.91,0.7]
[1765126498809,9.13,130.95,130.91,4.56305626]
[1765126499229,9.13,130.95,130.92,0.7]
[1765126499769,16.76670948,130.95,130.92,0.7]
[1765126500039,7.63597992,130.96,130.92,12.20122143]
[1765126500407,24.84545183,130.97,130.93,0.7]
[1765126500645,25.55545183,130.97,130.93,4.56305626]
[1765126500939,0.71,130.96,130.93,0.7]
[1765126501109,0.71,130.96,130.92,7.63816517]
[1765126501311,4.57305626,130.96,130.9,66.76305626]
[1765126501540,4.57305626,130.96,130.9,62.9]
[1765126501708,0.71,130.95,130.91,12.20154793]
[1765126502108,8.34657815,130.95,130.92,0.71]
[1765126502323,0.71,130.95,130.92,0.71]
[1765126502714,7.63602558,130.96,130.92,0.71]
[1765126503333,0.69,130.95,130.92,0.71]
[1765126504543,8.32659753,130.95,130.91,70.54849167]
[1765126505048,0.69,130.94,130.91,70.54849167]
[1765126505240,0.69,130.94,130.92,0.71]
[1765126506452,8.32722387,130.94,130.9,7.63917479]
[1765126506659,8.32722387,130.94,130.91,0.71]
[1765126506948,0.69,130.93,130.91,0.71]
[1765126507653,16.72722387,130.94,130.91,0.71]
[1765126508738,0.69,130.93,130.9,7.63917479]